[Event "European Online Club-ch-I 2021"]
[Site "Online"]
[Date "2021.03.27"]
[Round "8.12"]
[White "Boe, Mads"]
[Black "Cuenca Jimenez, Jose Fernando"]
[Result "1/2-1/2"]
[ECO "D02"]
[WhiteElo "2250"]
[BlackElo "2506"]
[Annotator "ChessBase"]
[PlyCount "129"]
[EventDate "2021.03.27"]
[EventType "team-tourn"]
[EventCountry "NET"]
[SourceTitle "playchess.com"]
[Source "ChessBase"]
[SourceQuality "1"]
[TimeControl "900+5"]

1. d4 {[%emt 0:00:00]} d5 {[%emt 0:00:06]} 2. Nf3 {[%emt 0:00:05]} e6 {[%emt 0:00:04]} 3. Bf4 {[%emt 0:00:03]} Nf6 {[%emt 0:00:04]} 4. e3 {[%emt 0:00:05]} c5 {[%emt 0:00:02]} 5. c3 {[%emt 0:00:02]} Nc6 {[%emt 0:00:01]} 6. Bd3 {[%emt 0:00:02]} Bd6 {[%emt 0:00:03]} 7. Bg3 {[%emt 0:00:04]} O-O {[%emt 0:00:04]} 8. Nbd2 {[%emt 0:00:02]} b6 {[%emt 0:00:13]} 9. O-O {[%emt 0:00:09]} Bb7 {[%emt 0:00:08]} 10. Qe2 {[%emt 0:00:09]} Bxg3 {[%emt 0:00:52]} 11. hxg3 {[%emt 0:00:04]} Qc7 {[%emt 0:00:53]} 12. dxc5 {[%emt 0:00:06]} bxc5 {[%emt 0:00:05]} 13. e4 {[%emt 0:00:01]} h6 {[%emt 0:00:46]} 14. Rfe1 {[%emt 0:00:27]} Rfe8 {[%emt 0:00:12]} 15. e5 {[%emt 0:00:21]} Nd7 {[%emt 0:00:26]} 16. g4 {[%emt 0:00:03]} f6 {[%emt 0:00:35]} 17. exf6 {[%emt 0:00:11]} Nxf6 {[%emt 0:00:07]} 18. g5 {[%emt 0:00:01]} hxg5 {[%emt 0:00:52]} 19. Nxg5 {[%emt 0:00:04]} e5 {[%emt 0:02:11]} 20. Bg6 {[%emt 0:00:05]} Re7 {[%emt 0:01:17]} 21. Qe3 {[%emt 0:00:05]} e4 {[%emt 0:01:04]} 22. Qxc5 {[%emt 0:02:36]} Qf4 {[%emt 0:01:25]} 23. Qe3 {[%emt 0:00:05]} Qh4 {[%emt 0:00:34]} 24. Bf5 {[%emt 0:04:59]} g6 {[%emt 0:02:30]} 25. Bh3 {[%emt 0:00:17]} Re5 {[%emt 0:00:28]} 26. Ne6 {[%emt 0:00:40]} g5 {[%emt 0:00:08]} 27. Nc5 {[%emt 0:00:44]} g4 {[%emt 0:00:18]} 28. Nxb7 {[%emt 0:00:05]} gxh3 {[%emt 0:00:02]} 29. Qxh3 {[%emt 0:00:26]} Qxh3 {[%emt 0:00:16]} 30. gxh3 {[%emt 0:00:02]} Rb8 {[%emt 0:00:08]} 31. Nc5 {[%emt 0:00:39]} Rxb2 {[%emt 0:00:04]} 32. Ncb3 {[%emt 0:00:04]} Nh5 {[%emt 0:00:24]} 33. Reb1 {[%emt 0:00:09]} Rxb1+ {[%emt 0:00:33]} 34. Rxb1 {[%emt 0:00:02]} Nf4 {[%emt 0:00:02]} 35. Kh2 {[%emt 0:00:27]} Rg5 {[%emt 0:00:30]} 36. Rg1 {[%emt 0:00:36]} Rxg1 {[%emt 0:00:02]} 37. Kxg1 {[%emt 0:00:01]} Nxh3+ {[%emt 0:00:10]} 38. Kg2 {[%emt 0:00:06]} Nf4+ {[%emt 0:00:01]} 39. Kf1 {[%emt 0:00:15]} Kf7 {[%emt 0:00:02]} 40. c4 {[%emt 0:00:03]} dxc4 {[%emt 0:00:16]} 41. Nxc4 {[%emt 0:00:04]} Ke6 {[%emt 0:00:08]} 42. a3 {[%emt 0:00:18]} Kd5 {[%emt 0:00:14]} 43. Ne3+ {[%emt 0:00:02]} Ke5 {[%emt 0:00:02]} 44. Nc4+ {[%emt 0:00:03]} Ke6 {[%emt 0:00:04]} 45. Ke1 {[%emt 0:00:07]} Ne5 {[%emt 0:00:06]} 46. Nxe5 {[%emt 0:00:25]} Kxe5 {[%emt 0:00:01]} 47. Kd2 {[%emt 0:00:04]} Kd5 {[%emt 0:00:03]} 48. Ke3 {[%emt 0:00:09]} Ng2+ {[%emt 0:00:02]} 49. Ke2 {[%emt 0:00:10]} Kc4 {[%emt 0:00:01]} 50. Nd2+ {[%emt 0:00:02]} Kd4 {[%emt 0:00:04]} 51. Nb3+ {[%emt 0:00:06]} Kd5 {[%emt 0:00:12]} 52. Nd2 {[%emt 0:00:07]} Nh4 {[%emt 0:00:11]} 53. Ke3 {[%emt 0:00:14]} Nf5+ {[%emt 0:00:02]} 54. Kf4 {[%emt 0:00:02]} Nd6 {[%emt 0:00:01]} 55. Ke3 {[%emt 0:00:06]} Ke5 {[%emt 0:00:03]} 56. f3 {[%emt 0:02:48]} Nf5+ {[%emt 0:00:02]} 57. Ke2 {[%emt 0:00:02]} e3 {[%emt 0:00:10]} 58. Nf1 {[%emt 0:00:02]} Kf4 {[%emt 0:00:13]} 59. Nxe3 {[%emt 0:00:30]} Nxe3 {[%emt 0:00:03]} 60. Kd3 {[%emt 0:00:01]} Kxf3 {[%emt 0:00:05]} 61. Kc3 {[%emt 0:00:04]} Ke4 {[%emt 0:00:02]} 62. Kb4 {[%emt 0:00:01]} Kd5 {[%emt 0:00:10]} 63. Ka5 {[%emt 0:00:02]} Nc4+ {[%emt 0:00:11]} 64. Ka6 {[%emt 0:00:01]} Nxa3 {[%emt 0:00:03]} 65. Kxa7 {[%emt 0:00:02]} 1/2-1/2

[Event "European Online Club-ch-I 2021"]
[Site "Online"]
[Date "2021.03.27"]
[Round "8.13"]
[White "Saric, Ivan"]
[Black "Arnaudov, G. Petar"]
[Result "1/2-1/2"]
[ECO "B12"]
[WhiteElo "2648"]
[BlackElo "2471"]
[Annotator "ChessBase"]
[PlyCount "126"]
[EventDate "2021.03.27"]
[EventType "team-tourn"]
[EventCountry "NET"]
[SourceTitle "playchess.com"]
[Source "ChessBase"]
[SourceQuality "1"]
[TimeControl "900+5"]

1. e4 {[%emt 0:00:00]} c6 {[%emt 0:00:07]} 2. d4 {[%emt 0:00:03]} d5 {[%emt 0:00:01]} 3. e5 {[%emt 0:00:01]} Bf5 {[%emt 0:00:03]} 4. Nf3 {[%emt 0:00:06]} e6 {[%emt 0:00:01]} 5. Be2 {[%emt 0:00:01]} Ne7 {[%emt 0:00:02]} 6. O-O {[%emt 0:00:03]} Ng6 {[%emt 0:00:02]} 7. Ne1 {[%emt 0:00:16]} h5 {[%emt 0:00:03]} 8. c3 {[%emt 0:00:01]} Nd7 {[%emt 0:00:28]} 9. Nc2 {[%emt 0:00:02]} h4 {[%emt 0:00:10]} 10. Ne3 {[%emt 0:00:06]} Bxb1 {[%emt 0:00:07]} 11. Rxb1 {[%emt 0:00:02]} Ne7 {[%emt 0:00:15]} 12. b4 {[%emt 0:00:16]} g6 {[%emt 0:00:05]} 13. a4 {[%emt 0:00:11]} Nf5 {[%emt 0:00:07]} 14. Bd3 {[%emt 0:00:24]} Be7 {[%emt 0:00:38]} 15. Bd2 {[%emt 0:00:36]} Qc7 {[%emt 0:00:20]} 16. Qb3 {[%emt 0:00:30]} f6 {[%emt 0:00:31]} 17. exf6 {[%emt 0:00:16]} Nxf6 {[%emt 0:00:07]} 18. h3 {[%emt 0:00:45]} Kf7 {[%emt 0:00:59]} 19. Rfe1 {[%emt 0:00:27]} Qd6 {[%emt 0:00:52]} 20. b5 {[%emt 0:00:55]} Bd8 {[%emt 0:00:21]} 21. bxc6 {[%emt 0:02:23]} bxc6 {[%emt 0:00:06]} 22. Qb4 {[%emt 0:00:17]} Qxb4 {[%emt 0:01:27]} 23. Rxb4 {[%emt 0:00:04]} Nd6 {[%emt 0:00:02]} 24. Reb1 {[%emt 0:00:15]} Re8 {[%emt 0:00:15]} 25. c4 {[%emt 0:01:07]} dxc4 {[%emt 0:01:37]} 26. Nxc4 {[%emt 0:00:04]} Nxc4 {[%emt 0:00:05]} 27. Rxc4 {[%emt 0:00:05]} Rc8 {[%emt 0:00:40]} 28. Rbc1 {[%emt 0:00:39]} Nd5 {[%emt 0:00:22]} 29. Rxc6 {[%emt 0:00:24]} Rxc6 {[%emt 0:00:03]} 30. Rxc6 {[%emt 0:00:01]} Bf6 {[%emt 0:00:01]} 31. Be3 {[%emt 0:00:39]} Re7 {[%emt 0:00:41]} 32. Bc4 {[%emt 0:00:16]} Rd7 {[%emt 0:00:10]} 33. Bxd5 {[%emt 0:00:14]} exd5 {[%emt 0:00:03]} 34. a5 {[%emt 0:00:15]} Rb7 {[%emt 0:00:49]} 35. a6 {[%emt 0:00:03]} Rb4 {[%emt 0:00:06]} 36. Rc7+ {[%emt 0:00:10]} Ke6 {[%emt 0:00:03]} 37. Rxa7 {[%emt 0:00:12]} Bxd4 {[%emt 0:00:09]} 38. Rb7 {[%emt 0:00:26]} Ra4 {[%emt 0:00:24]} 39. Bxd4 {[%emt 0:00:04]} Rxd4 {[%emt 0:00:03]} 40. Kf1 {[%emt 0:00:24]} Ra4 {[%emt 0:00:04]} 41. a7 {[%emt 0:00:03]} Ra2 {[%emt 0:00:06]} 42. Ke1 {[%emt 0:00:23]} d4 {[%emt 0:00:16]} 43. Kd1 {[%emt 0:00:06]} d3 {[%emt 0:00:02]} 44. Kc1 {[%emt 0:00:02]} d2+ {[%emt 0:00:07]} 45. Kd1 {[%emt 0:00:01]} g5 {[%emt 0:00:12]} 46. Rh7 {[%emt 0:01:21]} Kf6 {[%emt 0:00:06]} 47. f4 {[%emt 0:00:24]} Kg6 {[%emt 0:00:14]} 48. Rh8 {[%emt 0:00:44]} Rxa7 {[%emt 0:00:11]} 49. Rg8+ {[%emt 0:00:14]} Kf5 {[%emt 0:00:03]} 50. fxg5 {[%emt 0:00:01]} Ra1+ {[%emt 0:00:18]} 51. Kxd2 {[%emt 0:00:03]} Ra2+ {[%emt 0:00:02]} 52. Ke3 {[%emt 0:00:05]} Rxg2 {[%emt 0:00:02]} 53. Rf8+ {[%emt 0:00:02]} Kg6 {[%emt 0:00:01]} 54. Kf3 {[%emt 0:00:12]} Rxg5 {[%emt 0:00:13]} 55. Rg8+ {[%emt 0:00:13]} Kf5 {[%emt 0:00:04]} 56. Rxg5+ {[%emt 0:00:02]} Kxg5 {[%emt 0:00:01]} 57. Ke4 {[%emt 0:00:01]} Kg6 {[%emt 0:00:02]} 58. Kf4 {[%emt 0:00:01]} Kf6 {[%emt 0:00:01]} 59. Kg4 {[%emt 0:00:01]} Kg6 {[%emt 0:00:00]} 60. Kxh4 {[%emt 0:00:01]} Kh6 {[%emt 0:00:01]} 61. Kg3 {[%emt 0:00:01]} Kg6 {[%emt 0:00:01]} 62. h4 {[%emt 0:00:01]} Kh6 {[%emt 0:00:01]} 63. h5 {[%emt 0:00:01]} Kxh5 {[%emt 0:00:01]} 1/2-1/2

[Event "European Online Club-ch-I 2021"]
[Site "Online"]
[Date "2021.03.27"]
[Round "8.14"]
[White "Godart, Francois"]
[Black "Heberla, Bartlomiej"]
[Result "1-0"]
[ECO "C37"]
[WhiteElo "2422"]
[BlackElo "2556"]
[Annotator "ChessBase"]
[PlyCount "51"]
[EventDate "2021.03.27"]
[EventType "team-tourn"]
[EventCountry "NET"]
[SourceTitle "playchess.com"]
[Source "ChessBase"]
[SourceQuality "1"]
[TimeControl "900+5"]

1. e4 {[%emt 0:00:00]} e5 {[%emt 0:00:06]} 2. f4 {[%emt 0:00:03]} exf4 {[%emt 0:00:03]} 3. Nf3 {[%emt 0:00:01]} g5 {[%emt 0:00:08]} 4. Nc3 {[%emt 0:00:03]} Bg7 {[%emt 0:00:03]} 5. d4 {[%emt 0:00:03]} h6 {[%emt 0:00:05]} 6. g3 {[%emt 0:00:06]} fxg3 {[%emt 0:00:04]} 7. hxg3 {[%emt 0:00:03]} Nc6 {[%emt 0:00:12]} 8. Be3 {[%emt 0:00:07]} Nge7 {[%emt 0:00:40]} 9. Bc4 {[%emt 0:01:00]} Na5 {[%emt 0:00:41]} 10. Bd3 {[%emt 0:01:19]} d5 {[%emt 0:00:02]} 11. Qe2 {[%emt 0:00:09]} Bg4 {[%emt 0:00:22]} 12. exd5 {[%emt 0:00:43]} O-O {[%emt 0:00:37]} 13. Bh7+ {[%emt 0:05:02]} Kxh7 {[%emt 0:01:50]} 14. Nxg5+ {[%emt 0:00:08]} Kg8 {[%emt 0:00:02]} 15. Qxg4 {[%emt 0:00:01]} hxg5 {[%emt 0:00:01]} 16. Bxg5 {[%emt 0:00:13]} Re8 {[%emt 0:00:15]} 17. O-O-O {[%emt 0:00:06]} Qc8 {[%emt 0:00:09]} 18. Qh4 {[%emt 0:00:18]} Ng6 {[%emt 0:01:28]} 19. Qh7+ {[%emt 0:00:04]} Kf8 {[%emt 0:00:01]} 20. Rhf1 {[%emt 0:02:04]} Qd7 {[%emt 0:01:50]} 21. Qxg6 {[%emt 0:00:32]} Kg8 {[%emt 0:00:02]} 22. Qh5 {[%emt 0:00:07]} Nc4 {[%emt 0:00:01]} 23. Bf6 {[%emt 0:00:29]} Ne3 {[%emt 0:00:29]} 24. Bxg7 {[%emt 0:00:28]} Kxg7 {[%emt 0:00:00]} 25. Qg5+ {[%emt 0:00:03]} Kf8 {[%emt 0:00:03]} 26. Rh1 {[%emt 0:00:13]} 1-0

[Event "European Online Club-ch-I 2021"]
[Site "Online"]
[Date "2021.03.27"]
[Round "8.15"]
[White "Polak, Tomas"]
[Black "Marechal, Andy"]
[Result "1-0"]
[ECO "D17"]
[WhiteElo "2553"]
[BlackElo "2332"]
[Annotator "ChessBase"]
[PlyCount "127"]
[EventDate "2021.03.27"]
[EventType "team-tourn"]
[EventCountry "NET"]
[SourceTitle "playchess.com"]
[Source "ChessBase"]
[SourceQuality "1"]
[TimeControl "900+5"]

1. d4 {[%emt 0:00:00]} d5 {[%emt 0:00:06]} 2. c4 {[%emt 0:00:04]} c6 {[%emt 0:00:03]} 3. Nc3 {[%emt 0:00:14]} Nf6 {[%emt 0:00:06]} 4. Nf3 {[%emt 0:00:03]} dxc4 {[%emt 0:00:14]} 5. a4 {[%emt 0:00:04]} Bf5 {[%emt 0:00:04]} 6. Nh4 {[%emt 0:00:03]} Bg6 {[%emt 0:00:45]} 7. Nxg6 {[%emt 0:00:37]} hxg6 {[%emt 0:00:00]} 8. e3 {[%emt 0:00:02]} e6 {[%emt 0:00:25]} 9. Bxc4 {[%emt 0:00:04]} Bb4 {[%emt 0:00:15]} 10. h3 {[%emt 0:00:35]} Nbd7 {[%emt 0:00:14]} 11. Bd2 {[%emt 0:00:47]} a5 {[%emt 0:00:19]} 12. Qf3 {[%emt 0:01:51]} Qe7 {[%emt 0:00:19]} 13. Bb3 {[%emt 0:00:14]} e5 {[%emt 0:00:41]} 14. dxe5 {[%emt 0:00:29]} Nxe5 {[%emt 0:00:07]} 15. Qe2 {[%emt 0:00:02]} O-O {[%emt 0:02:37]} 16. O-O {[%emt 0:00:05]} Rad8 {[%emt 0:00:11]} 17. Rfd1 {[%emt 0:00:27]} Nd3 {[%emt 0:00:24]} 18. Rab1 {[%emt 0:00:37]} Nc5 {[%emt 0:00:10]} 19. Bc2 {[%emt 0:00:09]} Rd7 {[%emt 0:00:39]} 20. Qc4 {[%emt 0:00:23]} Rfd8 {[%emt 0:00:31]} 21. Be1 {[%emt 0:00:03]} Qe6 {[%emt 0:01:06]} 22. Qxe6 {[%emt 0:00:12]} Nxe6 {[%emt 0:00:02]} 23. Kf1 {[%emt 0:00:11]} Kf8 {[%emt 0:00:48]} 24. Ke2 {[%emt 0:00:10]} Ke7 {[%emt 0:00:03]} 25. Rxd7+ {[%emt 0:00:14]} Rxd7 {[%emt 0:00:11]} 26. f3 {[%emt 0:01:08]} Nd5 {[%emt 0:01:43]} 27. Bb3 {[%emt 0:01:13]} Nxc3+ {[%emt 0:00:24]} 28. bxc3 {[%emt 0:00:07]} Bc5 {[%emt 0:00:05]} 29. Bc4 {[%emt 0:00:38]} g5 {[%emt 0:00:27]} 30. h4 {[%emt 0:00:12]} gxh4 {[%emt 0:00:16]} 31. Bxh4+ {[%emt 0:00:02]} f6 {[%emt 0:00:01]} 32. Be1 {[%emt 0:00:16]} Nf8 {[%emt 0:00:30]} 33. Bd3 {[%emt 0:00:17]} Kd8 {[%emt 0:00:48]} 34. Bf5 {[%emt 0:00:14]} Re7 {[%emt 0:00:01]} 35. Rd1+ {[%emt 0:00:37]} Kc7 {[%emt 0:00:04]} 36. Bg3+ {[%emt 0:00:14]} Kb6 {[%emt 0:00:05]} 37. e4 {[%emt 0:01:09]} g6 {[%emt 0:00:55]} 38. Bc8 {[%emt 0:00:10]} f5 {[%emt 0:00:19]} 39. Bh4 {[%emt 0:00:18]} Rf7 {[%emt 0:00:47]} 40. e5 {[%emt 0:00:20]} Be7 {[%emt 0:00:18]} 41. Rb1+ {[%emt 0:00:40]} Kc7 {[%emt 0:00:07]} 42. Rxb7+ {[%emt 0:00:13]} Kxc8 {[%emt 0:00:02]} 43. Rxe7 {[%emt 0:00:02]} Rxe7 {[%emt 0:00:06]} 44. Bxe7 {[%emt 0:00:02]} Ne6 {[%emt 0:00:00]} 45. g3 {[%emt 0:00:32]} Kd7 {[%emt 0:00:05]} 46. Ba3 {[%emt 0:00:02]} Kc7 {[%emt 0:00:49]} 47. Kd3 {[%emt 0:00:03]} Kb6 {[%emt 0:00:09]} 48. Be7 {[%emt 0:00:36]} Kc7 {[%emt 0:00:06]} 49. Ke3 {[%emt 0:00:15]} Kb7 {[%emt 0:00:03]} 50. Kf2 {[%emt 0:00:12]} Kc7 {[%emt 0:00:04]} 51. Kg2 {[%emt 0:00:06]} Kb7 {[%emt 0:00:03]} 52. Ba3 {[%emt 0:00:05]} Kc7 {[%emt 0:00:03]} 53. Kh3 {[%emt 0:00:04]} Kb6 {[%emt 0:00:05]} 54. g4 {[%emt 0:00:07]} fxg4+ {[%emt 0:00:32]} 55. Kxg4 {[%emt 0:00:03]} Kc7 {[%emt 0:00:05]} 56. c4 {[%emt 0:00:15]} Kd7 {[%emt 0:00:06]} 57. Bc1 {[%emt 0:00:04]} Nd4 {[%emt 0:00:04]} 58. Be3 {[%emt 0:00:14]} Nb3 {[%emt 0:00:07]} 59. Kg5 {[%emt 0:00:08]} Ke6 {[%emt 0:00:01]} 60. f4 {[%emt 0:00:04]} Kf7 {[%emt 0:00:04]} 61. e6+ {[%emt 0:00:04]} Kxe6 {[%emt 0:00:03]} 62. Kxg6 {[%emt 0:00:01]} Na1 {[%emt 0:00:01]} 63. f5+ {[%emt 0:00:04]} Ke7 {[%emt 0:00:16]} 64. f6+ {[%emt 0:00:05]} 1-0

[Event "European Online Club-ch-I 2021"]
[Site "Online"]
[Date "2021.03.27"]
[Round "8.16"]
[White "Schwerteck, Michael"]
[Black "Nayhebaver, Martin"]
[Result "0-1"]
[ECO "E19"]
[WhiteElo "2113"]
[BlackElo "2485"]
[Annotator "ChessBase"]
[PlyCount "118"]
[EventDate "2021.03.27"]
[EventType "team-tourn"]
[EventCountry "NET"]
[SourceTitle "playchess.com"]
[Source "ChessBase"]
[SourceQuality "1"]
[TimeControl "900+5"]

1. d4 {[%emt 0:00:00]} Nf6 {[%emt 0:00:03]} 2. Nf3 {[%emt 0:00:03]} e6 {[%emt 0:00:03]} 3. g3 {[%emt 0:00:06]} b6 {[%emt 0:00:15]} 4. Bg2 {[%emt 0:00:05]} Bb7 {[%emt 0:00:02]} 5. O-O {[%emt 0:00:06]} Be7 {[%emt 0:00:02]} 6. c4 {[%emt 0:00:11]} O-O {[%emt 0:00:02]} 7. Nc3 {[%emt 0:00:04]} Ne4 {[%emt 0:00:03]} 8. Qc2 {[%emt 0:00:10]} Nxc3 {[%emt 0:00:12]} 9. Qxc3 {[%emt 0:00:03]} d6 {[%emt 0:00:16]} 10. b3 {[%emt 0:00:41]} Nd7 {[%emt 0:00:13]} 11. Bb2 {[%emt 0:00:06]} Be4 {[%emt 0:00:40]} 12. Rfd1 {[%emt 0:00:57]} a5 {[%emt 0:01:06]} 13. Bf1 {[%emt 0:01:51]} Bf6 {[%emt 0:01:14]} 14. Nd2 {[%emt 0:01:05]} Bb7 {[%emt 0:00:07]} 15. Qc2 {[%emt 0:01:17]} g6 {[%emt 0:00:16]} 16. e4 {[%emt 0:00:16]} Bg7 {[%emt 0:01:25]} 17. Bg2 {[%emt 0:00:48]} Qe7 {[%emt 0:00:21]} 18. a3 {[%emt 0:00:50]} f5 {[%emt 0:01:37]} 19. d5 {[%emt 0:02:00]} Bxb2 {[%emt 0:01:14]} 20. Qxb2 {[%emt 0:00:04]} e5 {[%emt 0:00:16]} 21. exf5 {[%emt 0:00:32]} gxf5 {[%emt 0:01:03]} 22. Re1 {[%emt 0:00:08]} f4 {[%emt 0:00:32]} 23. Qc3 {[%emt 0:00:45]} Rf6 {[%emt 0:01:47]} 24. Ne4 {[%emt 0:00:19]} Rg6 {[%emt 0:00:04]} 25. Bh3 {[%emt 0:00:46]} Rf8 {[%emt 0:00:26]} 26. Rf1 {[%emt 0:00:36]} Nf6 {[%emt 0:00:35]} 27. Rae1 {[%emt 0:00:50]} Kh8 {[%emt 0:00:54]} 28. Qd3 {[%emt 0:00:26]} Rh6 {[%emt 0:00:52]} 29. Be6 {[%emt 0:00:45]} Nxe4 {[%emt 0:00:19]} 30. Rxe4 {[%emt 0:00:05]} Qg5 {[%emt 0:00:22]} 31. Qf3 {[%emt 0:00:57]} Rxe6 {[%emt 0:01:00]} 32. dxe6 {[%emt 0:00:04]} Qg6 {[%emt 0:00:08]} 33. Rfe1 {[%emt 0:00:09]} Qxe6 {[%emt 0:00:06]} 34. gxf4 {[%emt 0:00:37]} Bxe4 {[%emt 0:00:04]} 35. Rxe4 {[%emt 0:00:03]} Qg6+ {[%emt 0:00:03]} 36. Kf1 {[%emt 0:00:02]} Qf5 {[%emt 0:00:01]} 37. Ke2 {[%emt 0:00:06]} exf4 {[%emt 0:00:10]} 38. Qd3 {[%emt 0:00:11]} f3+ {[%emt 0:00:02]} 39. Ke3 {[%emt 0:00:03]} Qg5+ {[%emt 0:00:05]} 40. Kd4 {[%emt 0:00:02]} Qf6+ {[%emt 0:00:07]} 41. Ke3 {[%emt 0:00:02]} Qh6+ {[%emt 0:00:03]} 42. Kd4 {[%emt 0:00:03]} Qxh2 {[%emt 0:00:03]} 43. Qe3 {[%emt 0:00:06]} Qh5 {[%emt 0:00:07]} 44. Re7 {[%emt 0:00:09]} Qc5+ {[%emt 0:00:07]} 45. Kd3 {[%emt 0:00:03]} Qf5+ {[%emt 0:00:06]} 46. Kc3 {[%emt 0:00:03]} Qf6+ {[%emt 0:00:03]} 47. Kc2 {[%emt 0:00:04]} Qg6+ {[%emt 0:00:02]} 48. Kc3 {[%emt 0:00:04]} Qf6+ {[%emt 0:00:02]} 49. Kc2 {[%emt 0:00:01]} c5 {[%emt 0:00:14]} 50. Rb7 {[%emt 0:00:12]} Qg6+ {[%emt 0:00:03]} 51. Kb2 {[%emt 0:00:06]} Qf6+ {[%emt 0:00:03]} 52. Kc2 {[%emt 0:00:03]} Qf5+ {[%emt 0:00:07]} 53. Kb2 {[%emt 0:00:03]} Qe5+ {[%emt 0:00:07]} 54. Qxe5+ {[%emt 0:00:02]} dxe5 {[%emt 0:00:00]} 55. Re7 {[%emt 0:00:20]} Rf5 {[%emt 0:00:05]} 56. Kc2 {[%emt 0:00:03]} h5 {[%emt 0:00:01]} 57. Kd3 {[%emt 0:00:04]} h4 {[%emt 0:00:01]} 58. Ke4 {[%emt 0:00:01]} Rh5 {[%emt 0:00:17]} 59. Kxf3 {[%emt 0:00:09]} h3 {[%emt 0:00:01]} 0-1

[Event "European Online Club-ch-I 2021"]
[Site "Online"]
[Date "2021.03.27"]
[Round "8.17"]
[White "Iskandarov, Misratdin"]
[Black "Batsiashvili, Nino"]
[Result "1-0"]
[ECO "B11"]
[WhiteElo "2535"]
[BlackElo "2491"]
[Annotator "ChessBase"]
[PlyCount "59"]
[EventDate "2021.03.27"]
[EventType "team-tourn"]
[EventCountry "NET"]
[SourceTitle "playchess.com"]
[Source "ChessBase"]
[SourceQuality "1"]
[TimeControl "900+5"]

1. e4 {[%emt 0:00:00]} c6 {[%emt 0:00:03]} 2. Nc3 {[%emt 0:00:03]} d5 {[%emt 0:00:01]} 3. Nf3 {[%emt 0:00:02]} dxe4 {[%emt 0:00:03]} 4. Nxe4 {[%emt 0:00:02]} Nf6 {[%emt 0:00:02]} 5. Qe2 {[%emt 0:00:03]} Nxe4 {[%emt 0:00:09]} 6. Qxe4 {[%emt 0:00:02]} Be6 {[%emt 0:00:02]} 7. b3 {[%emt 0:00:27]} Nd7 {[%emt 0:00:12]} 8. Bb2 {[%emt 0:00:02]} Nf6 {[%emt 0:00:10]} 9. Qe2 {[%emt 0:01:02]} g6 {[%emt 0:00:19]} 10. Ng5 {[%emt 0:00:37]} Qd7 {[%emt 0:00:19]} 11. Nxe6 {[%emt 0:00:05]} fxe6 {[%emt 0:00:03]} 12. g3 {[%emt 0:00:10]} Bh6 {[%emt 0:00:30]} 13. Bh3 {[%emt 0:00:13]} Qd5 {[%emt 0:00:39]} 14. O-O-O {[%emt 0:00:21]} Rd8 {[%emt 0:00:51]} 15. Bxe6 {[%emt 0:01:53]} Bxd2+ {[%emt 0:00:18]} 16. Kb1 {[%emt 0:00:04]} Qa5 {[%emt 0:00:27]} 17. a3 {[%emt 0:02:27]} Rd6 {[%emt 0:01:22]} 18. b4 {[%emt 0:00:31]} Qd8 {[%emt 0:00:04]} 19. Bb3 {[%emt 0:00:49]} Kf8 {[%emt 0:01:58]} 20. f4 {[%emt 0:01:09]} a5 {[%emt 0:03:00]} 21. Be5 {[%emt 0:00:17]} Rd7 {[%emt 0:01:04]} 22. Be6 {[%emt 0:00:08]} axb4 {[%emt 0:00:14]} 23. Bxd7 {[%emt 0:00:10]} Bc3 {[%emt 0:00:03]} 24. Be6 {[%emt 0:00:21]} Qb6 {[%emt 0:00:08]} 25. Bxc3 {[%emt 0:00:29]} bxc3+ {[%emt 0:00:02]} 26. Bb3 {[%emt 0:00:02]} Nd5 {[%emt 0:00:26]} 27. Qe5 {[%emt 0:00:35]} Rg8 {[%emt 0:00:04]} 28. Rxd5 {[%emt 0:00:24]} cxd5 {[%emt 0:00:02]} 29. Qxd5 {[%emt 0:00:02]} e6 {[%emt 0:00:10]} 30. Qxe6 {[%emt 0:00:10]} 1-0

[Event "European Online Club-ch-I 2021"]
[Site "Online"]
[Date "2021.03.27"]
[Round "8.18"]
[White "Javakhishvili, Lela"]
[Black "Muradli, Mahammad"]
[Result "1-0"]
[ECO "D63"]
[WhiteElo "2473"]
[BlackElo "2449"]
[Annotator "ChessBase"]
[PlyCount "47"]
[EventDate "2021.03.27"]
[EventType "team-tourn"]
[EventCountry "NET"]
[SourceTitle "playchess.com"]
[Source "ChessBase"]
[SourceQuality "1"]
[TimeControl "900+5"]

1. d4 {[%emt 0:00:00]} d5 {[%emt 0:00:03]} 2. c4 {[%emt 0:00:05]} e6 {[%emt 0:00:01]} 3. Nc3 {[%emt 0:00:02]} Be7 {[%emt 0:00:02]} 4. Nf3 {[%emt 0:00:05]} Nf6 {[%emt 0:00:01]} 5. Bg5 {[%emt 0:00:04]} h6 {[%emt 0:00:01]} 6. Bh4 {[%emt 0:00:02]} O-O {[%emt 0:00:05]} 7. e3 {[%emt 0:00:02]} Nbd7 {[%emt 0:00:01]} 8. Rc1 {[%emt 0:00:05]} c5 {[%emt 0:00:04]} 9. dxc5 {[%emt 0:00:49]} dxc4 {[%emt 0:00:21]} 10. Bxc4 {[%emt 0:00:08]} Nxc5 {[%emt 0:00:10]} 11. O-O {[%emt 0:00:18]} a6 {[%emt 0:00:51]} 12. Ne5 {[%emt 0:01:06]} Qd6 {[%emt 0:04:29]} 13. Bg3 {[%emt 0:03:50]} Qb8 {[%emt 0:03:44]} 14. Ng6 {[%emt 0:01:18]} fxg6 {[%emt 0:00:16]} 15. Bxb8 {[%emt 0:00:03]} Rxb8 {[%emt 0:00:01]} 16. b4 {[%emt 0:00:09]} Nce4 {[%emt 0:00:14]} 17. Nxe4 {[%emt 0:00:03]} Nxe4 {[%emt 0:00:02]} 18. Qd3 {[%emt 0:00:49]} Nf6 {[%emt 0:01:18]} 19. Qxg6 {[%emt 0:00:06]} Bxb4 {[%emt 0:00:02]} 20. Bb3 {[%emt 0:00:10]} Bd6 {[%emt 0:02:54]} 21. Rfd1 {[%emt 0:00:28]} Be5 {[%emt 0:00:02]} 22. f4 {[%emt 0:00:19]} Bb2 {[%emt 0:00:03]} 23. Rc7 {[%emt 0:00:11]} Nd5 {[%emt 0:00:12]} 24. Rxd5 {[%emt 0:00:51]} 1-0